[Event "ONJK DE"]
[Site "Enschede, Netherlands"]
[Date "2022.08.10"]
[Round "7.2"]
[White "Breider, Jayden"]
[Black "Frederiks, Jesse"]
[Result "0-1"]
[TimeControl "40min + 30sec/move"]
[WhiteElo "1350"]
[BlackElo "1302"]

1. e4 {[%clk 00:40:58]} {[%emt 00:00:01]} e6 {[%clk 00:40:58]} {[%emt
00:00:03]} 2. d4 {[%clk 00:41:21]} {[%emt 00:00:08]} d5 {[%clk 00:41:26]}
{[%emt 00:00:02]} 3. e5 {[%clk 00:41:43]} {[%emt 00:00:08]} c5 {[%clk
00:41:52]} {[%emt 00:00:04]} 4. c3 {[%clk 00:42:09]} {[%emt 00:00:04]} Nc6
{[%clk 00:42:17]} {[%emt 00:00:04]} 5. Nf3 {[%clk 00:42:29]} {[%emt 00:00:10]}
Qb6 {[%clk 00:42:40]} {[%emt 00:00:08]} 6. Bd3 {[%clk 00:42:40]} {[%emt
00:00:20]} Bd7 {[%clk 00:42:53]} {[%emt 00:00:15]} 7. O-O {[%clk 00:42:48]}
{[%emt 00:00:22]} cxd4 {[%clk 00:42:30]} {[%emt 00:00:54]} 8. cxd4 {[%clk
00:42:24]} {[%emt 00:00:54]} Bb4 {[%clk 00:41:48]} {[%emt 00:01:12]} 9. Be3
{[%clk 00:38:47]} {[%emt 00:04:07]} Rc8 {[%clk 00:38:47]} {[%emt 00:03:29]} 10.
a3 {[%clk 00:33:23]} {[%emt 00:05:55]} Bf8 {[%clk 00:37:37]} {[%emt 00:01:39]}
11. Qd2 {[%clk 00:28:34]} {[%emt 00:05:20]} Nge7 {[%clk 00:35:13]} {[%emt
00:02:53]} 12. Nc3 {[%clk 00:28:08]} {[%emt 00:00:57]} Ng6 {[%clk 00:33:20]}
{[%emt 00:02:22]} 13. Rac1 {[%clk 00:22:18]} {[%emt 00:06:21]} Be7 {[%clk
00:30:46]} {[%emt 00:03:03]} 14. Rfe1 {[%clk 00:17:48]} {[%emt 00:05:00]} O-O
{[%clk 00:26:13]} 15. Na4 {[%clk 00:17:48]} Qd8 {[%clk 00:23:05]} {[%emt
00:14:09]} 16. b4 {[%clk 00:12:46]} {[%emt 00:00:34]} Na5 {[%clk 00:14:49]}
{[%emt 00:08:46]} 17. Qd1 {[%clk 00:08:57]} {[%emt 00:04:19]} Rxc1 {[%clk
00:14:24]} {[%emt 00:00:55]} 18. Bxc1 {[%clk 00:09:15]} {[%emt 00:00:13]} Nc4
{[%clk 00:13:09]} {[%emt 00:01:45]} 19. Bxc4 {[%clk 00:09:29]} {[%emt
00:00:17]} dxc4 {[%clk 00:13:30]} {[%emt 00:00:08]} 20. Nc5 {[%clk 00:09:53]}
{[%emt 00:00:07]} Bxc5 {[%clk 00:12:55]} {[%emt 00:01:04]} 21. bxc5 {[%clk
00:09:32]} {[%emt 00:00:51]} Bc6 {[%clk 00:12:13]} {[%emt 00:01:09]} 22. Re3
{[%clk 00:08:59]} {[%emt 00:01:05]} Ne7 {[%clk 00:09:02]} {[%emt 00:03:41]} 23.
Bb2 {[%clk 00:07:42]} {[%emt 00:01:48]} Nd5 {[%clk 00:08:37]} {[%emt 00:00:55]}
24. Re2 {[%clk 00:07:43]} {[%emt 00:00:29]} Qa5 {[%clk 00:08:08]} {[%emt
00:00:56]} 25. Qa1 {[%clk 00:05:54]} {[%emt 00:02:22]} c3 {[%clk 00:06:26]}
{[%emt 00:02:11]} 26. Bc1 {[%clk 00:06:11]} {[%emt 00:00:14]} Bb5 {[%clk
00:06:07]} {[%emt 00:00:48]} 27. Re1 {[%clk 00:05:17]} {[%emt 00:01:25]} Bd3
{[%clk 00:05:30]} {[%emt 00:01:06]} 28. Ng5 {[%clk 00:03:43]} {[%emt 00:02:04]}
c2 {[%clk 00:05:29]} {[%emt 00:00:31]} 29. Nf3 {[%clk 00:03:53]} {[%emt
00:00:21]} Rc8 {[%clk 00:03:50]} {[%emt 00:02:08]} 30. Qb2 {[%clk 00:03:43]}
{[%emt 00:00:40]} b6 {[%clk 00:03:05]} {[%emt 00:01:15]} 31. cxb6 {[%clk
00:03:54]} {[%emt 00:00:20]} axb6 {[%clk 00:03:07]} {[%emt 00:00:28]} 32. Bd2
{[%clk 00:03:50]} {[%emt 00:00:35]} Qa4 {[%clk 00:02:20]} {[%emt 00:01:14]} 33.
Rc1 {[%clk 00:04:08]} {[%emt 00:00:13]} b5 {[%clk 00:01:28]} {[%emt 00:01:23]}
34. Ne1 {[%clk 00:04:15]} {[%emt 00:00:23]} Bg6 {[%clk 00:01:41]} {[%emt
00:00:17]} 35. h4 {[%clk 00:04:12]} {[%emt 00:00:33]} h6 {[%clk 00:01:45]}
{[%emt 00:00:26]} 36. h5 {[%clk 00:04:06]} {[%emt 00:00:35]} Bh7 {[%clk
00:02:05]} {[%emt 00:00:10]} 37. Bb4 {[%clk 00:02:50]} {[%emt 00:01:47]} Rc4
{[%clk 00:01:36]} {[%emt 00:00:58]} 38. Bd2 {[%clk 00:01:54]} {[%emt 00:01:27]}
Bf5 {[%clk 00:01:33]} {[%emt 00:00:32]} 39. f3 {[%clk 00:02:06]} {[%emt
00:00:19]} Rxd4 {[%clk 00:01:44]} {[%emt 00:00:19]} 40. Bc3 {[%clk 00:01:33]}
{[%emt 00:01:04]} Rd1 {[%clk 00:01:42]} {[%emt 00:00:31]} 41. Bb4 {[%clk
00:01:28]} {[%emt 00:00:35]} Qa7+ {[%clk 00:00:45]} {[%emt 00:01:26]} 42. Kh2
{[%clk 00:01:39]} {[%emt 00:00:19]} Qc7 {[%clk 00:00:46]} {[%emt 00:00:30]} 43.
Bd6 {[%clk 00:01:56]} {[%emt 00:00:13]} Qc3 {[%clk 00:01:06]} {[%emt 00:00:10]}
44. Qxc3 {[%clk 00:00:43]} {[%emt 00:01:44]} Nxc3 {[%clk 00:01:33]} {[%emt
00:00:03]} 45. Rxc2 {[%clk 00:00:58]} {[%emt 00:00:14]} Bxc2 {[%clk 00:01:57]}
{[%emt 00:00:06]} 46. Nxc2 {[%clk 00:01:22]} {[%emt 00:00:07]} Rd2 {[%clk
00:02:00]} {[%emt 00:00:25]} 47. Na1 {[%clk 00:01:34]} {[%emt 00:00:20]} Ra2
{[%clk 00:02:09]} {[%emt 00:00:20]} 48. Nb3 {[%clk 00:01:58]} {[%emt 00:00:06]}
Nd5 {[%clk 00:02:19]} {[%emt 00:00:20]} 49. Kh3 {[%clk 00:02:02]} {[%emt
00:00:26]} Nf4+ {[%clk 00:02:08]} {[%emt 00:00:41]} 50. Kg3 {[%clk 00:02:24]}
{[%emt 00:00:08]} Nxg2 {[%clk 00:02:12]} {[%emt 00:00:26]} 51. Nd4 {[%clk
00:02:40]} {[%emt 00:00:14]} Rb2 {[%clk 00:02:04]} {[%emt 00:00:37]} 52. Bb4
{[%clk 00:03:09]} {[%emt 00:00:02]} Ne3 {[%clk 00:02:14]} {[%emt 00:00:19]} 53.
Nxb5 {[%clk 00:03:25]} {[%emt 00:00:15]} Nc2 {[%clk 00:02:30]} {[%emt
00:00:14]} 54. Nc3 {[%clk 00:02:46]} {[%emt 00:01:09]} Nxb4 {[%clk 00:02:54]}
{[%emt 00:00:06]} 55. axb4 {[%clk 00:03:15]} {[%emt 00:00:02]} Rxb4 {[%clk
00:03:22]} {[%emt 00:00:01]} 56. Ne4 {[%clk 00:03:00]} {[%emt 00:00:45]} f6
{[%clk 00:03:32]} {[%emt 00:00:20]} 57. exf6 {[%clk 00:03:21]} {[%emt
00:00:09]} gxf6 {[%clk 00:03:52]} {[%emt 00:00:09]} 58. Nxf6+ {[%clk 00:03:47]}
{[%emt 00:00:05]} Kf7 {[%clk 00:04:07]} {[%emt 00:00:15]} 59. Ng4 {[%clk
00:04:10]} {[%emt 00:00:06]} Kg7 {[%clk 00:04:14]} {[%emt 00:00:23]} 60. Kf2
{[%clk 00:03:39]} {[%emt 00:01:02]} Rb5 {[%clk 00:04:30]} {[%emt 00:00:14]} 61.
f4 {[%clk 00:03:28]} {[%emt 00:00:41]} Rxh5 {[%clk 00:04:37]} {[%emt 00:00:22]}
62. Kg3 {[%clk 00:03:48]} {[%emt 00:00:11]} Ra5 {[%clk 00:04:57]} {[%emt
00:00:10]} 63. Ne5 {[%clk 00:04:08]} {[%emt 00:00:10]} Kf6 {[%clk 00:04:54]}
{[%emt 00:00:32]} 64. Ng4+ {[%clk 00:04:31]} {[%emt 00:00:07]} Kg6 {[%clk
00:05:18]} {[%emt 00:00:06]} 65. Nh2 {[%clk 00:03:59]} {[%emt 00:01:02]} Kf5
{[%clk 00:05:15]} {[%emt 00:00:33]} 66. Ng4 {[%clk 00:04:14]} {[%emt 00:00:16]}
Ra3+ {[%clk 00:05:40]} {[%emt 00:00:05]} 67. Kh4 {[%clk 00:04:40]} {[%emt
00:00:04]} h5 {[%clk 00:05:12]} {[%emt 00:00:58]} 68. Nf2 {[%clk 00:04:52]}
{[%emt 00:00:18]} Kxf4 {[%clk 00:05:23]} {[%emt 00:00:19]} 69. Kxh5 {[%clk
00:05:16]} {[%emt 00:00:06]} e5 {[%clk 00:05:37]} {[%emt 00:00:15]} 70. Kh4
{[%clk 00:05:24]} {[%emt 00:00:22]} e4 {[%clk 00:05:51]} {[%emt 00:00:17]} 71.
Nh3+ {[%clk 00:05:41]} {[%emt 00:00:13]} Rxh3 {[%clk 00:06:10]} {[%emt
00:00:11]} 72. Kxh3 {[%clk 00:06:01]} {[%emt 00:00:09]} Kf3 {[%clk 00:06:35]}
{[%emt 00:00:05]} 73. Kh2 {[%clk 00:06:22]} {[%emt 00:00:10]} Kf2 {[%clk
00:07:00]} {[%emt 00:00:05]} 74. Kh1 {[%clk 00:06:49]} {[%emt 00:00:03]} e3
{[%clk 00:07:22]} {[%emt 00:00:07]} 75. Kh2 {[%clk 00:07:16]} {[%emt 00:00:04]}
e2 {[%clk 00:07:48]} {[%emt 00:00:04]} 76. Kh3 {[%clk 00:07:43]} {[%emt
00:00:04]} e1=Q {[%clk 00:08:10]} {[%emt 00:00:07]} 0-1

[Event "ONJK DE"]
[Site "Enschede, Netherlands"]
[Date "2022.08.10"]
[Round "7.3"]
[White "Declerck, Adriaan"]
[Black "Verwer, Oscar"]
[Result "1-0"]
[TimeControl "40min + 30sec/move"]
[WhiteElo "1371"]
[BlackElo "1361"]

1. e4 {[%clk 00:40:58]} {[%emt 00:00:02]} c5 {[%clk 00:40:56]} {[%emt
00:00:04]} 2. Nc3 {[%clk 00:41:24]} {[%emt 00:00:04]} Nc6 {[%clk 00:41:22]}
{[%emt 00:00:04]} 3. f4 {[%clk 00:41:51]} {[%emt 00:00:03]} g6 {[%clk
00:41:43]} {[%emt 00:00:10]} 4. Nf3 {[%clk 00:42:14]} {[%emt 00:00:06]} Bg7
{[%clk 00:42:08]} {[%emt 00:00:05]} 5. g3 {[%clk 00:42:42]} {[%emt 00:00:02]}
e6 {[%clk 00:42:22]} {[%emt 00:00:16]} 6. Bg2 {[%clk 00:43:07]} {[%emt
00:00:05]} Nge7 {[%clk 00:42:24]} {[%emt 00:00:28]} 7. d3 {[%clk 00:43:28]}
{[%emt 00:00:08]} d6 {[%clk 00:42:13]} {[%emt 00:00:42]} 8. O-O {[%clk
00:43:40]} {[%emt 00:00:18]} O-O {[%clk 00:42:01]} {[%emt 00:00:42]} 9. h3
{[%clk 00:44:03]} {[%emt 00:00:07]} d5 {[%clk 00:42:00]} {[%emt 00:00:31]} 10.
Qe1 {[%clk 00:44:23]} {[%emt 00:00:11]} Rb8 {[%clk 00:41:33]} {[%emt 00:00:56]}
11. g4 {[%clk 00:44:08]} {[%emt 00:00:44]} Nd4 {[%clk 00:41:02]} {[%emt
00:01:02]} 12. Nxd4 {[%clk 00:43:48]} {[%emt 00:00:50]} Bxd4+ {[%clk 00:40:29]}
{[%emt 00:01:03]} 13. Kh1 {[%clk 00:43:34]} {[%emt 00:00:44]} Bg7 {[%clk
00:40:37]} {[%emt 00:00:22]} 14. Qg3 {[%clk 00:42:31]} {[%emt 00:01:34]} f6
{[%clk 00:39:42]} {[%emt 00:01:24]} 15. Bd2 {[%clk 00:40:30]} {[%emt 00:02:30]}
b6 {[%clk 00:36:57]} {[%emt 00:03:17]} 16. Rae1 {[%clk 00:39:52]} {[%emt
00:01:07]} dxe4 {[%clk 00:37:05]} {[%emt 00:00:22]} 17. Nxe4 {[%clk 00:40:06]}
{[%emt 00:00:16]} Bb7 {[%clk 00:36:20]} {[%emt 00:01:16]} 18. Bc3 {[%clk
00:39:32]} {[%emt 00:01:04]} Nd5 {[%clk 00:34:25]} {[%emt 00:02:24]} 19. f5
{[%clk 00:34:00]} {[%emt 00:06:01]} Nxc3 {[%clk 00:29:54]} {[%emt 00:05:01]} 20.
Nxc3 {[%clk 00:33:14]} {[%emt 00:01:17]} Bxg2+ {[%clk 00:29:40]} {[%emt
00:00:44]} 21. Qxg2 {[%clk 00:33:35]} {[%emt 00:00:09]} e5 {[%clk 00:24:11]}
{[%emt 00:05:59]} 22. fxg6 {[%clk 00:32:47]} {[%emt 00:01:18]} hxg6 {[%clk
00:24:07]} {[%emt 00:00:34]} 23. Qe4 {[%clk 00:32:56]} {[%emt 00:00:21]} Qe8
{[%clk 00:22:24]} {[%emt 00:02:14]} 24. Nd5 {[%clk 00:32:56]} {[%emt 00:00:29]}
Qf7 {[%clk 00:21:18]} {[%emt 00:01:36]} 25. c4 {[%clk 00:31:50]} {[%emt
00:01:36]} Kh8 {[%clk 00:19:33]} {[%emt 00:02:14]} 26. Rf2 {[%clk 00:30:30]}
{[%emt 00:01:51]} f5 {[%clk 00:12:02]} {[%emt 00:08:01]} 27. Qf3 {[%clk
00:30:26]} {[%emt 00:00:34]} f4 {[%clk 00:11:06]} {[%emt 00:01:25]} 28. g5
{[%clk 00:24:42]} {[%emt 00:06:15]} Rbd8 {[%clk 00:10:30]} {[%emt 00:01:06]} 29.
h4 {[%clk 00:24:33]} {[%emt 00:00:39]} b5 {[%clk 00:10:19]} {[%emt 00:00:42]}
30. b3 {[%clk 00:23:50]} {[%emt 00:01:12]} Rc8 {[%clk 00:08:27]} {[%emt
00:02:22]} 31. Rh2 {[%clk 00:21:33]} {[%emt 00:02:47]} bxc4 {[%clk 00:06:50]}
{[%emt 00:02:07]} 32. h5 {[%clk 00:19:55]} {[%emt 00:02:07]} Kg8 {[%clk
00:05:18]} {[%emt 00:02:02]} 33. hxg6 {[%clk 00:20:13]} {[%emt 00:00:13]} Qe6
{[%clk 00:05:18]} {[%emt 00:00:31]} 34. dxc4 {[%clk 00:19:45]} {[%emt
00:00:57]} Rfe8 {[%clk 00:04:34]} {[%emt 00:01:14]} 35. Nxf4 {[%clk 00:18:08]}
{[%emt 00:02:07]} Qd7 {[%clk 00:03:38]} {[%emt 00:01:25]} 36. Nd5 {[%clk
00:17:53]} {[%emt 00:00:46]} 1-0

[Event "ONJK DE"]
[Site "Enschede, Netherlands"]
[Date "2022.08.10"]
[Round "7.4"]
[White "Dijkhuijsen, Thomas"]
[Black "Decraene, Lotus"]
[Result "0-1"]
[TimeControl "40min + 30sec/move"]
[WhiteElo "1306"]
[BlackElo "1332"]

1. e4 {[%clk 00:40:58]} {[%emt 00:00:02]} c5 {[%clk 00:40:59]} {[%emt
00:00:03]} 2. Nf3 {[%clk 00:41:23]} {[%emt 00:00:05]} d6 {[%clk 00:41:14]}
{[%emt 00:00:15]} 3. d4 {[%clk 00:41:49]} {[%emt 00:00:03]} cxd4 {[%clk
00:41:42]} {[%emt 00:00:01]} 4. Nxd4 {[%clk 00:42:13]} {[%emt 00:00:07]} Nf6
{[%clk 00:41:55]} {[%emt 00:00:17]} 5. Nc3 {[%clk 00:42:36]} {[%emt 00:00:07]}
a6 {[%clk 00:42:03]} {[%emt 00:00:23]} 6. Bc4 {[%clk 00:42:52]} {[%emt
00:00:13]} e6 {[%clk 00:41:57]} {[%emt 00:00:36]} 7. O-O {[%clk 00:43:02]}
{[%emt 00:00:20]} Be7 {[%clk 00:42:15]} {[%emt 00:00:12]} 8. f4 {[%clk
00:43:08]} {[%emt 00:00:24]} Nbd7 {[%clk 00:42:25]} {[%emt 00:00:20]} 9. Be3
{[%clk 00:42:27]} {[%emt 00:01:11]} b5 {[%clk 00:42:22]} {[%emt 00:00:34]} 10.
Be2 {[%clk 00:40:17]} {[%emt 00:02:39]} Bb7 {[%clk 00:42:48]} {[%emt 00:00:05]}
11. Bh5 {[%clk 00:39:19]} {[%emt 00:01:28]} O-O {[%clk 00:41:52]} {[%emt
00:01:26]} 12. f5 {[%clk 00:37:27]} {[%emt 00:02:21]} e5 {[%clk 00:39:22]}
{[%emt 00:03:01]} 13. Nb3 {[%clk 00:35:46]} {[%emt 00:02:11]} Nxe4 {[%emt
00:00:42]} 14. Nd5 {[%clk 00:35:23]} {[%emt 00:00:51]} Bg5 {[%clk 00:35:05]}
{[%emt 00:04:36]} 15. Bf3 {[%clk 00:34:00]} {[%emt 00:01:53]} Bxd5 {[%clk
00:34:18]} {[%emt 00:01:18]} 16. Bxg5 {[%clk 00:33:41]} {[%emt 00:00:48]} Nxg5
{[%clk 00:28:20]} {[%emt 00:06:28]} 17. Qxd5 {[%clk 00:33:15]} {[%emt
00:00:57]} Nf6 {[%clk 00:26:40]} {[%emt 00:02:10]} 18. Qxa8 {[%clk 00:33:07]}
{[%emt 00:00:38]} Qb6+ {[%clk 00:26:24]} {[%emt 00:00:46]} 19. Kh1 {[%clk
00:32:50]} {[%emt 00:00:47]} Rxa8 {[%clk 00:26:41]} {[%emt 00:00:13]} 20. Bxa8
{[%clk 00:33:15]} {[%emt 00:00:05]} Ng4 {[%clk 00:26:56]} {[%emt 00:00:15]} 21.
h4 {[%clk 00:32:35]} {[%emt 00:01:09]} Ne4 {[%clk 00:26:44]} {[%emt 00:00:43]}
22. Bxe4 {[%clk 00:30:44]} {[%emt 00:02:21]} Nf2+ {[%clk 00:27:12]} {[%emt
00:00:02]} 23. Rxf2 {[%clk 00:29:07]} {[%emt 00:02:06]} Qxf2 {[%clk 00:27:29]}
{[%emt 00:00:13]} 24. Bd3 {[%clk 00:27:43]} {[%emt 00:01:55]} e4 {[%clk
00:27:24]} {[%emt 00:00:35]} 25. Bf1 {[%clk 00:27:26]} {[%emt 00:00:46]} Qxh4+
{[%clk 00:27:30]} {[%emt 00:00:25]} 26. Kg1 {[%clk 00:27:22]} {[%emt 00:00:34]}
e3 {[%clk 00:27:54]} {[%emt 00:00:06]} 27. Bd3 {[%clk 00:27:20]} {[%emt
00:00:31]} Qf2+ {[%clk 00:28:00]} {[%emt 00:00:25]} 28. Kh2 {[%clk 00:27:30]}
{[%emt 00:00:20]} e2 {[%clk 00:23:03]} {[%emt 00:05:26]} 29. Bxe2 {[%clk
00:27:54]} {[%emt 00:00:06]} Qxe2 {[%clk 00:23:26]} {[%emt 00:00:07]} 30. Nd4
{[%clk 00:28:02]} {[%emt 00:00:22]} Qe5+ {[%clk 00:23:47]} {[%emt 00:00:09]} 31.
Kh1 {[%clk 00:27:45]} {[%emt 00:00:47]} Qxd4 {[%clk 00:24:15]} {[%emt
00:00:03]} 32. c3 {[%clk 00:28:08]} {[%emt 00:00:07]} Qf2 {[%clk 00:24:12]}
{[%emt 00:00:31]} 33. b3 {[%clk 00:28:07]} {[%emt 00:00:34]} Qxf5 {[%clk
00:24:26]} {[%emt 00:00:15]} 34. Kg1 {[%clk 00:27:55]} {[%emt 00:00:41]} Qc5+
{[%clk 00:24:48]} {[%emt 00:00:09]} 35. Kh1 {[%clk 00:27:58]} {[%emt 00:00:27]}
Qxc3 {[%clk 00:25:14]} {[%emt 00:00:04]} 36. Rd1 {[%clk 00:28:18]} {[%emt
00:00:09]} Qe5 {[%clk 00:25:09]} {[%emt 00:00:35]} 37. Rc1 {[%clk 00:28:18]}
{[%emt 00:00:31]} g6 {[%clk 00:25:16]} {[%emt 00:00:24]} 38. Rc6 {[%clk
00:28:36]} {[%emt 00:00:11]} Qa1+ {[%clk 00:25:28]} {[%emt 00:00:18]} 39. Kh2
{[%clk 00:29:02]} {[%emt 00:00:04]} a5 {[%clk 00:24:18]} {[%emt 00:01:40]} 40.
Rxd6 {[%clk 00:29:23]} {[%emt 00:00:09]} Qe5+ {[%clk 00:24:42]} {[%emt
00:00:06]} 41. Kh1 {[%clk 00:29:46]} {[%emt 00:00:07]} Qxd6 {[%clk 00:25:10]}
{[%emt 00:00:02]} 42. a4 {[%clk 00:29:49]} {[%emt 00:00:26]} bxa4 {[%clk
00:25:36]} {[%emt 00:00:05]} 43. bxa4 {[%clk 00:30:13]} {[%emt 00:00:06]} Qd1+
{[%clk 00:25:38]} {[%emt 00:00:28]} 44. Kh2 {[%clk 00:30:35]} {[%emt 00:00:07]}
Qxa4 {[%clk 00:26:01]} {[%emt 00:00:07]} 45. g3 {[%clk 00:31:01]} {[%emt
00:00:05]} Qb3 {[%clk 00:26:01]} {[%emt 00:00:27]} 46. Kh3 {[%clk 00:31:20]}
{[%emt 00:00:14]} f5 {[%clk 00:25:48]} {[%emt 00:00:43]} 47. Kh4 {[%clk
00:31:32]} {[%emt 00:00:17]} g5+ {[%clk 00:25:29]} {[%emt 00:00:50]} 48. Kxg5
{[%clk 00:31:14]} {[%emt 00:00:47]} Qxg3+ {[%clk 00:25:53]} {[%emt 00:00:06]}
49. Kxf5 {[%clk 00:31:20]} {[%emt 00:00:24]} a4 {[%clk 00:26:11]} {[%emt
00:00:13]} 50. Kf6 {[%clk 00:31:40]} {[%emt 00:00:09]} a3 {[%clk 00:26:04]}
{[%emt 00:00:37]} 51. Ke7 {[%clk 00:32:01]} {[%emt 00:00:09]} a2 {[%clk
00:26:16]} {[%emt 00:00:18]} 52. Ke6 {[%clk 00:32:08]} {[%emt 00:00:23]} a1=R
{[%clk 00:26:38]} {[%emt 00:00:10]} 53. Kd5 {[%clk 00:32:23]} {[%emt 00:00:14]}
Re1 {[%clk 00:26:58]} {[%emt 00:00:10]} 54. Kc4 {[%clk 00:32:40]} {[%emt
00:00:13]} Rd1 {[%clk 00:27:21]} {[%emt 00:00:07]} 55. Kc5 {[%clk 00:33:02]}
{[%emt 00:00:08]} Qc7+ {[%clk 00:27:40]} {[%emt 00:00:10]} 56. Kb5 {[%clk
00:33:00]} {[%emt 00:00:31]} Rb1+ {[%clk 00:27:48]} {[%emt 00:00:22]} 57. Ka6
{[%clk 00:33:22]} {[%emt 00:00:09]} Qb6# {[%clk 00:27:46]} {[%emt 00:00:01]}
0-1

[Event "ONJK DE"]
[Site "Enschede, Netherlands"]
[Date "2022.08.10"]
[Round "7.5"]
[White "Gang, Kevin Wan Ze"]
[Black "Van Haaften, Jelle"]
[Result "1-0"]
[TimeControl "40min + 30sec/move"]
[WhiteElo "1105"]
[BlackElo "992"]

1. e4 {[%clk 00:40:59]} c6 {[%clk 00:40:59]} {[%emt 00:00:02]} 2. d4 {[%clk
00:41:25]} {[%emt 00:00:04]} d5 {[%clk 00:41:24]} {[%emt 00:00:04]} 3. Nc3
{[%clk 00:41:49]} {[%emt 00:00:07]} g6 {[%clk 00:41:48]} {[%emt 00:00:05]} 4.
Nf3 {[%clk 00:41:47]} {[%emt 00:00:32]} Bg7 {[%clk 00:42:08]} {[%emt 00:00:11]}
5. e5 {[%clk 00:41:43]} {[%emt 00:00:34]} e6 {[%clk 00:42:30]} {[%emt
00:00:07]} 6. Bd3 {[%clk 00:41:59]} {[%emt 00:00:14]} Nd7 {[%clk 00:42:54]}
{[%emt 00:00:07]} 7. Be3 {[%clk 00:42:16]} {[%emt 00:00:13]} Ne7 {[%clk
00:43:14]} {[%emt 00:00:10]} 8. O-O {[%clk 00:42:07]} {[%emt 00:00:38]} Nf5
{[%clk 00:43:39]} {[%emt 00:00:06]} 9. Bxf5 {[%clk 00:41:56]} {[%emt 00:00:40]}
exf5 {[%clk 00:44:04]} {[%emt 00:00:05]} 10. Re1 {[%clk 00:42:11]} {[%emt
00:00:15]} O-O {[%clk 00:44:21]} {[%emt 00:00:13]} 11. Bd2 {[%clk 00:42:15]}
{[%emt 00:00:26]} Re8 {[%clk 00:44:45]} {[%emt 00:00:07]} 12. Qe2 {[%clk
00:42:20]} {[%emt 00:00:24]} Nb6 {[%clk 00:44:52]} {[%emt 00:00:23]} 13. Qd3
{[%clk 00:40:26]} {[%emt 00:02:24]} Be6 {[%clk 00:45:08]} {[%emt 00:00:14]} 14.
Re2 {[%clk 00:39:14]} {[%emt 00:01:43]} Nc4 {[%clk 00:45:16]} {[%emt 00:00:22]}
15. b3 {[%clk 00:39:06]} {[%emt 00:00:37]} Nb6 {[%clk 00:45:33]} {[%emt
00:00:13]} 16. Rae1 {[%clk 00:39:10]} {[%emt 00:00:25]} Nd7 {[%clk 00:45:54]}
{[%emt 00:00:10]} 17. Ng5 {[%clk 00:38:52]} {[%emt 00:00:48]} f6 {[%clk
00:46:10]} {[%emt 00:00:15]} 18. exf6 {[%clk 00:38:41]} {[%emt 00:00:40]} Nxf6
{[%clk 00:46:03]} {[%emt 00:00:38]} 19. Nxe6 {[%clk 00:38:52]} {[%emt
00:00:18]} Qd7 {[%clk 00:46:26]} {[%emt 00:00:08]} 20. Nxg7 {[%clk 00:38:46]}
{[%emt 00:00:36]} Qxg7 {[%clk 00:46:48]} {[%emt 00:00:08]} 21. Rxe8+ {[%clk
00:39:08]} {[%emt 00:00:07]} Rxe8 {[%emt 00:00:08]} 22. Rxe8+ {[%clk 00:39:31]}
{[%emt 00:00:05]} Nxe8 {[%clk 00:47:28]} {[%emt 00:00:15]} 23. Qe3 {[%clk
00:39:54]} {[%emt 00:00:06]} Nf6 {[%clk 00:47:50]} {[%emt 00:00:09]} 24. Qe5
{[%clk 00:39:43]} {[%emt 00:00:40]} Qf7 {[%clk 00:48:02]} {[%emt 00:00:18]} 25.
Bh6 {[%clk 00:39:41]} {[%emt 00:00:32]} Ng4 {[%clk 00:48:17]} {[%emt 00:00:15]}
26. Qb8+ {[%clk 00:40:03]} {[%emt 00:00:08]} Qf8 {[%clk 00:48:34]} {[%emt
00:00:14]} 27. Qxf8# {[%clk 00:40:14]} {[%emt 00:00:18]} 1-0

[Event "ONJK DE"]
[Site "Enschede, Netherlands"]
[Date "2022.08.10"]
[Round "7.6"]
[White "Thijssen, Freek (E)"]
[Black "Katpatal, Akshaj (E)"]
[Result "1/2-1/2"]
[TimeControl "40min + 30sec/move"]
[WhiteElo "1484"]
[BlackElo "1874"]

1. e4 {[%clk 00:40:57]} {[%emt 00:00:03]} e5 {[%clk 00:40:58]} {[%emt
00:00:03]} 2. Nf3 {[%clk 00:41:22]} {[%emt 00:00:04]} Nc6 {[%clk 00:41:22]}
{[%emt 00:00:05]} 3. Bc4 {[%clk 00:41:48]} {[%emt 00:00:05]} Bc5 {[%clk
00:41:47]} {[%emt 00:00:05]} 4. c3 {[%clk 00:42:13]} {[%emt 00:00:05]} d6
{[%clk 00:42:10]} {[%emt 00:00:07]} 5. d4 {[%clk 00:42:35]} {[%emt 00:00:08]}
exd4 {[%clk 00:42:35]} {[%emt 00:00:05]} 6. cxd4 {[%clk 00:42:58]} {[%emt
00:00:06]} Bb4+ {[%clk 00:43:01]} {[%emt 00:00:04]} 7. Bd2 {[%clk 00:43:16]}
{[%emt 00:00:13]} Bxd2+ {[%clk 00:43:24]} {[%emt 00:00:07]} 8. Nbxd2 {[%clk
00:43:40]} {[%emt 00:00:07]} Nf6 {[%clk 00:43:42]} {[%emt 00:00:10]} 9. d5
{[%clk 00:43:44]} {[%emt 00:00:26]} Ne7 {[%clk 00:43:59]} {[%emt 00:00:13]} 10.
Rc1 {[%clk 00:43:52]} {[%emt 00:00:23]} Ng6 {[%clk 00:44:13]} {[%emt 00:00:16]}
11. h3 {[%clk 00:43:28]} {[%emt 00:00:54]} O-O {[%clk 00:43:13]} {[%emt
00:01:30]} 12. O-O {[%clk 00:43:48]} {[%emt 00:00:11]} Re8 {[%clk 00:43:30]}
{[%emt 00:00:12]} 13. Qc2 {[%clk 00:43:43]} {[%emt 00:00:35]} Bd7 {[%clk
00:43:47]} {[%emt 00:00:13]} 14. Rfe1 {[%clk 00:42:44]} {[%emt 00:01:28]} Rc8
{[%clk 00:43:21]} {[%emt 00:00:56]} 15. Qb3 {[%clk 00:41:28]} {[%emt 00:01:47]}
b5 {[%clk 00:43:04]} {[%emt 00:00:47]} 16. Bd3 {[%clk 00:37:53]} {[%emt
00:04:05]} Nf4 {[%clk 00:43:15]} {[%emt 00:00:18]} 17. Bf1 {[%clk 00:37:59]}
{[%emt 00:00:24]} a6 {[%clk 00:43:32]} {[%emt 00:00:13]} 18. Qa3 {[%clk
00:37:55]} {[%emt 00:00:34]} Ra8 {[%clk 00:43:08]} {[%emt 00:00:55]} 19. Qc3
{[%clk 00:36:44]} {[%emt 00:01:40]} Rc8 {[%clk 00:42:34]} {[%emt 00:01:03]} 20.
a3 {[%clk 00:36:38]} {[%emt 00:00:38]} c6 {[%clk 00:42:46]} {[%emt 00:00:15]}
21. Qe3 {[%clk 00:36:22]} {[%emt 00:00:48]} N6xd5 {[%emt 00:01:27]} 22. Qb3
{[%clk 00:32:28]} {[%emt 00:04:22]} Nb6 {[%clk 00:42:00]} {[%emt 00:00:22]} 23.
Qe3 {[%clk 00:30:03]} {[%emt 00:02:55]} Ng6 {[%clk 00:41:59]} {[%emt 00:00:30]}
24. Qd4 {[%clk 00:27:13]} {[%emt 00:03:20]} d5 {[%clk 00:41:57]} {[%emt
00:00:32]} 25. exd5 {[%clk 00:27:10]} {[%emt 00:00:34]} Nxd5 {[%clk 00:42:06]}
{[%emt 00:00:21]} 26. Rxe8+ {[%clk 00:27:13]} {[%emt 00:00:26]} Bxe8 {[%clk
00:42:30]} {[%emt 00:00:07]} 27. Nb3 {[%clk 00:27:10]} {[%emt 00:00:33]} a5
{[%clk 00:40:56]} {[%emt 00:02:04]} 28. Bxb5 {[%clk 00:23:26]} {[%emt
00:04:14]} cxb5 {[%clk 00:40:30]} {[%emt 00:00:55]} 29. Rxc8 {[%clk 00:23:52]}
{[%emt 00:00:05]} Qxc8 {[%clk 00:40:50]} {[%emt 00:00:10]} 30. Qxd5 {[%clk
00:24:14]} {[%emt 00:00:08]} a4 {[%emt 00:01:03]} 31. Nc5 1/2-1/2